{"text_format":"1","workbook":"xlsx","n_sheets":1,"sheets":["répartition par UE"],"not_rendered":{"charts":0,"images":0,"macros":0,"external_links":0,"defined_names":1,"comments":0,"pivot_tables":0},"unopened":[],"bounds":{"document_bytes":16777216,"sheet_cells":100000,"rows_first":2000,"rows_last":500,"rows_between":2000,"halvings":0,"cell_chars":16384,"cell_head_chars":4096},"cells_cut":0,"cells_raw":0,"read":"whole","date_system":"1900"}

{"sheet":"répartition par UE","index":0,"n_rows":87,"n_cols":10,"rows_kept":87,"cut":false,"hidden":false,"merged":[[27,1,29,1],[15,0,15,9],[2,0,3,9],[0,0,0,9],[84,0,84,9],[63,0,64,9],[71,0,72,9],[33,0,34,9],[42,0,43,9],[48,0,49,9],[54,1,58,1],[9,1,13,1],[19,1,24,1]]}
["Annexe II : MAQUETTE DE FORMATION  EN OSTEOPATHIE"]
["Axes de formation","Lien avec le référentiel de compétences","année 1","année 2","année 3","année 4","année 5","CM ","TD ","Total CM+TD"]
["1 - Sciences fondamentales"]
[]
["1.1. Biologie cellulaire, biologie moléculaire, biochimie, ","Compétence 1 Evaluer une situation et élaborer un diagnostic ostéopathique\n2. Analyser les demandes de la personne, les données du dossier, les antécédents et les caractéristiques des symptômes et prendre en compte les traitements en cours 7. Identifier les situations nécessitant l’intervention d’un médecin ou d’un autre professionnel médical et celles pouvant justifier l'intervention d'un autre professionnel  ",60,null,null,null,null,40,20,60]
["1.2. Hématologie - Immunologie","Compétence 1 Evaluer une situation et élaborer un diagnostic ostéopathique\n2. Analyser les demandes de la personne, les données du dossier, les antécédents et les caractéristiques des symptômes et prendre en compte les traitements en cours 7. Identifier les situations nécessitant l’intervention d’un médecin ou d’un autre professionnel médical et celles pouvant justifier l'intervention d'un autre professionnel",null,60,null,null,null,40,20,60]
["1.3. Histologie - Embryologie - Génétique","Compétence 1 Evaluer une situation et élaborer un diagnostic ostéopathique\n2. Analyser les demandes de la personne, les données du dossier, les antécédents et les caractéristiques des symptômes et prendre en compte les traitements en cours 7. Identifier les situations nécessitant l’intervention d’un médecin ou d’un autre professionnel médical et celles pouvant justifier l'intervention d'un autre professionnel",70,null,null,null,null,50,20,70]
["1.4. Biophysique et biomécanique","Compétence 1 Evaluer une situation et élaborer un diagnostic ostéopathique\n3. Réaliser les examens physiques appropriés 4. Evaluer la mobilité des différentes articulations et les caractères physiques des tissus5. Evaluer les troubles fonctionnels",60,40,null,null,null,60,40,100]
["1.5. Anatomie et physiologie générale","Compétence 1 Evaluer une situation et élaborer un diagnostic ostéopathique\n",20,null,null,null,null,20,0,20]
["1.6. Anatomie et physiologie du système nerveux ","Compétence 1 Evaluer une situation et élaborer un diagnostic ostéopathique\n1. Conduire un entretien permettant de recueillir les informations nécessaires 2. Analyser les demandes de la personne, les données du dossier, les antécédents et les caractéristiques des symptômes et prendre en compte les traitements en cours 3. Réaliser les examens physiques appropriés  5. Evaluer les troubles fonctionnels 7. Identifier les situations nécessitant l’intervention d’un médecin ou d’un autre professionnel médical et celles pouvant justifier l'intervention d'un autre professionnel  10. Elaborer un diagnostic ostéopathique",40,60,20,null,null,100,20,120]
["1.7. Anatomie et physiologie du système musculo-squelettique",null,92,48,null,null,null,100,40,140]
["1.8. Anatomie et physiologie du système cardio-vasculaire et respiratoire",null,40,30,null,null,null,54,16,70]
["1.9. Anatomie et physiologie des systèmes digestif, endocrinien, génito-urinaire ",null,40,40,null,null,null,60,20,80]
["1.10. Anatomie et physiologie des systèmes tégumentaire et sensoriels",null,40,null,null,null,null,30,10,40]
["TOTAL",null,{"$f":"SUM(C5:C14)","v":462},278,20,0,0,554,206,760]
["2 - Sémiologie des altérations de l'état de santé"]
["2.1. Pharmacologie générale","Compétence 1 Evaluer une situation et élaborer un diagnostic ostéopathique\n2. Analyser les demandes de la personne, les données du dossier, les antécédents et les caractéristiques des symptômes et prendre en compte les traitements en cours 7. Identifier les situations nécessitant l’intervention d’un médecin ou d’un autre professionnel médical et celles pouvant justifier l'intervention d'un autre professionnel",null,null,null,40,null,36,4,40]
["2.2.Examens para-cliniques","Compétence 1 Evaluer une situation et élaborer un diagnostic ostéopathique\n2. Analyser les demandes de la personne, les données du dossier, les antécédents et les caractéristiques des symptômes et prendre en compte les traitements en cours ",null,null,20,40,null,40,20,60]
["2.3. Infectiologie ","Compétence 1 Evaluer une situation et élaborer un diagnostic ostéopathique\n2. Analyser les demandes de la personne, les données du dossier, les antécédents et les caractéristiques des symptômes et prendre en compte les traitements en cours 7. Identifier les situations nécessitant l’intervention d’un médecin ou d’un autre professionnel médical et celles pouvant justifier l'intervention d'un autre professionnel",null,20,null,null,null,20,0,20]
["2.4. Sémiologie des affections  du système nerveux","Compétence 1 Evaluer une situation et élaborer un diagnostic ostéopathique\n1. Conduire un entretien permettant de recueillir les informations nécessaires 2. Analyser les demandes de la personne, les données du dossier, les antécédents et les caractéristiques des symptômes et prendre en compte les traitements en cours 3. Réaliser les examens physiques appropriés  5. Evaluer les troubles fonctionnels 7. Identifier les situations nécessitant l’intervention d’un médecin ou d’un autre professionnel médical et celles pouvant justifier l'intervention d'un autre professionnel 9. Discerner les éléments du ressort de l’ostéopathe  10. Elaborer un diagnostic ostéopathique",null,null,50,20,null,50,20,70]
["2.5.  Sémiologie des affections du système musculo-squelettique",null,null,70,50,null,null,80,40,120]
["2.6. Sémiologie des affections des systèmes cardio-vasculaire et respiratoire",null,null,50,null,null,null,38,12,50]
["2.7. Sémiologie des affections des systèmes digestif et endocrinien \n",null,null,null,46,null,null,34,12,46]
["2.8. Sémiologie des affections du système génito-urinaire",null,null,null,42,null,null,30,12,42]
["2.9.  Sémiologie et physiopathologie  des systèmes tégumentaire et sensoriels",null,null,null,null,40,null,32,8,40]
["2.10. Sémiologie des affections des systèmes immunitaire et hématologique","Compétence 1 Evaluer une situation et élaborer un diagnostic ostéopathique\n2. Analyser les demandes de la personne, les données du dossier, les antécédents et les caractéristiques des symptômes et prendre en compte les traitements en cours ",null,null,null,20,null,16,4,20]
["2.11. Sémiologie des affections psychiatriques","Compétence 1 Evaluer une situation et élaborer un diagnostic ostéopathique\n2. Analyser les demandes de la personne, les données du dossier, les antécédents et les caractéristiques des symptômes et prendre en compte les traitements en cours ",null,null,null,24,null,20,4,24]
["2.12. Sémiologie des affections pédiatriques","Compétence 1 Evaluer une situation et élaborer un diagnostic ostéopathique\n1. Conduire un entretien permettant de recueillir les informations nécessaires 2. Analyser les demandes de la personne, les données du dossier, les antécédents et les caractéristiques des symptômes et prendre en compte les traitements en cours 3. Réaliser les examens physiques appropriés 4. Evaluer la mobilité des différentes articulations et les caractères physiques des tissus 5. Evaluer les troubles fonctionnels 7. Identifier les situations nécessitant l’intervention d’un médecin ou d’un autre professionnel médical et celles pouvant justifier l'intervention d'un autre professionnel 9. Discerner les éléments du ressort de l’ostéopathe  10. Elaborer un diagnostic ostéopathique",null,null,null,28,null,20,8,28]
["2.13. Sémiologie des affections gériatriques",null,null,null,null,null,20,12,8,20]
["2.14. Sémiologie des affections du sportif",null,null,null,null,null,12,8,4,12]
["2.15 La douleur  \n","Compétence 1 Evaluer une situation et élaborer un diagnostic ostéopathique\n6. Evaluer la douleur et en rechercher les causes en prenant en compte l’ensemble de la personne et de son environnement",null,null,null,20,null,12,8,20]
["2.16. Diététique et nutrition","Compétence 4 Conduire une relation dans un contexte d’intervention ostéopathique\n5. Proposer des actions de prévention pour aider au maintien de l’état de santé des personnes et en assurer le suivi",null,null,null,null,20,12,8,20]
["TOTAL",null,{"$f":"SUM(C17:C32)","v":0},140,208,232,52,460,172,632]
[" 3 - Sciences humaines, sciences sociales, gestion et droit"]
[]
["3.1. Psychologie et psychosomatique","Compétence 4 Conduire une relation dans un contexte d’intervention ostéopathique \n1. Conduire un entretien permettant de recueillir les informations nécessaires 2 Analyser les demandes de la personne, les données du dossier, les antécédents et les caractéristiques des symptômes et prendre en compte les traitements en cours",null,20,12,40,null,60,12,72]
["3.2. Sociologie générale et sociologie de la santé","Compétence 4 Conduire une relation dans un contexte d’intervention ostéopathique\n1. Accueillir et écouter la personne et son entourage, en prenant en compte la demande et le contexte 3. Etablir des modalités de relation propices à l’intervention en ostéopathie en tenant compte des situations particulières et du niveau de compréhension de la personne 5. Proposer des actions de prévention pour aider au maintien de l’état de santé des personnes et en assurer le suivi",null,null,16,null,null,12,4,16]
["3.3. Santé publique","Compétence 1 Evaluer une situation et élaborer un diagnostic ostéopathique\n7. Identifier les situations nécessitant l’intervention d’un médecin ou d’un autre professionnel médical et celles pouvant justifier l'intervention d'un autre professionnel 8. Identifier l’intérêt d’une démarche pluri professionnelle en fonction de la situation",null,null,16,null,null,12,4,16]
["3.4.Législation","Compétence 1 Evaluer une situation et élaborer un diagnostic ostéopathique\n7. Identifier les situations nécessitant l’intervention d’un médecin ou d’un autre professionnel médical et celles pouvant justifier l'intervention d'un autre professionnel 9. discerner les éléments du ressort de l'ostéopathe",null,null,null,null,16,12,4,16]
["3.5. Ethique et déontologie","Compétence 1 Evaluer une situation et élaborer un diagnostic ostéopathique\n 7. Identifier les situations nécessitant l’intervention d’un médecin ou d’un autre professionnel médical et celles pouvant justifier l'intervention d'un autre professionnel 9. discerner les éléments du ressort de l'ostéopathe",null,null,null,null,20,8,12,20]
["3.6. Gestion","Compétence 6 Gérer un cabinet ",null,null,null,null,20,16,4,20]
["TOTAL",null,{"$f":"SUM(C36:C41)","v":0},20,44,40,56,120,40,160]
["4 - Ostéopathie : fondements et modèles"]
[]
["4.1. Les modèles conceptuels de l'ostéopathie, principes et fondements de l'ostéopathie","Compétence 2 Concevoir et conduire un projet d'intervention ostéopathique\n1. Elaborer une stratégie d’intervention ostéopathique adaptée à la personne et à son contexte environnemental  2. Choisir les techniques manuelles appropriées à la personne, à son modèle fonctionnel et à ses troubles en tenant compte de l’équilibre bénéfice / risque",40,null,null,null,null,36,4,40]
["4.2. Les fondements des diagnostics et traitements ostéopathiques","Compétence 2 Concevoir et conduire un projet d'intervention ostéopathique\n1. Elaborer une stratégie d’intervention ostéopathique adaptée à la personne et à son contexte environnemental  2. Choisir les techniques manuelles appropriées à la personne, à son modèle fonctionnel et à ses troubles en tenant compte de l’équilibre bénéfice / risque",null,40,null,null,null,36,4,40]
["4.3. Le raisonnement et la démarche clinique ostéopathique","Compétence 1 Evaluer une situation et élaborer un diagnostic ostéopathique\n 5. Evaluer les troubles fonctionnels7 . Identifier les situations nécessitant l’intervention d’un médecin ou d’un autre professionnel médical et celles pouvant justifier l'intervention d'un autre professionnel 9. Discerner les éléments du ressort de l’ostéopathe  10. Elaborer un diagnostic ostéopathique",null,20,40,20,null,40,40,80]
["TOTAL",null,{"$f":"SUM(C45:C47)","v":40},60,40,20,0,112,48,160]
[" 5 - Pratique ostéopathique"]
[]
["5.1. Anatomie palpatoire ","Compétence 3 Réaliser une intervention ostéopathique\n1. Mettre en œuvre les techniques appropriées de manipulation et mobilisation 2. Repérer les risques liés à la mise en œuvre de l’intervention ostéopathique 4. Evaluer les résultats du traitement ostéopathique mis en œuvre 5. Adapter l’intervention ostéopathique à l’évolution des troubles de la personne",120,30,null,null,null,30,120,150]
["5.2. Palpation ostéopathique","Compétence 3 Réaliser une intervention ostéopathique\n1. Mettre en œuvre les techniques appropriées de manipulation et mobilisation 2. Repérer les risques liés à la mise en œuvre de l’intervention ostéopathique 4. Evaluer les résultats du traitement ostéopathique mis en œuvre5. Adapter l’intervention ostéopathique à l’évolution des troubles de la personne",20,36,null,null,null,8,48,56]
["5.3 : Méthodes et moyens du diagnostic d’opportunité","Compétence 1 Evaluer une situation et élaborer un diagnostic ostéopathique\n1. Conduire un entretien permettant de recueillir les informations nécessaires 2. Analyser les demandes de la personne, les données du dossier, les antécédents et les caractéristiques des symptômes et prendre en compte les traitements en cours 3. Réaliser les examens physiques appropriés  7. Identifier les situations nécessitant l’intervention d’un médecin ou d’un autre professionnel médical et celles pouvant justifier l'intervention d'un autre professionnel  9. Discerner les éléments du ressort de l’ostéopathe  10. Elaborer un diagnostic ostéopathique",null,20,58,null,null,40,38,78]
["5.4 : Mise en œuvre des moyens de diagnostic et de traitements dans différentes situations","Compétence 1 Evaluer une situation et élaborer un diagnostic ostéopathique\n1. Conduire un entretien permettant de recueillir les informations nécessaires 2. Analyser les demandes de la personne, les données du dossier, les antécédents et les caractéristiques des symptômes et prendre en compte les traitements en cours 3. Réaliser les examens physiques appropriés 4. Evaluer la mobilité des différentes articulations et les caractères physiques des tissus 5. Evaluer les troubles fonctionnels 7. Identifier les situations nécessitant l’intervention d’un médecin ou d’un autre professionnel médical et celles pouvant justifier l'intervention d'un autre professionnel 10. Elaborer un diagnostic ostéopathique",null,null,20,50,null,null,70,70]
["5.5. Apprentissage des moyens de diagnostic, des traitements ostéopathiques et des techniques appropriées -Région appendiculaire inférieur","Compétence 1 Evaluer une situation et élaborer un diagnostic ostéopathique\n1. Conduire un entretien permettant de recueillir les informations nécessaires 2. Analyser les demandes de la personne, les données du dossier, les antécédents et les caractéristiques des symptômes et prendre en compte les traitements en cours 3. Réaliser les examens physiques appropriés  7. Identifier les situations nécessitant l’intervention d’un médecin ou d’un autre professionnel médical et celles pouvant justifier l'intervention d'un autre professionnel 9. Discerner les éléments du ressort de l’ostéopathe  10. Elaborer un diagnostic ostéopathique\n\nCompétence 3 Réaliser une intervention ostéopathique\n1. Mettre en œuvre les techniques appropriées de manipulation et mobilisation 2. Repérer les risques liés à la mise en œuvre de l’intervention ostéopathique 4. Evaluer les résultats du traitement ostéopathique mis en œuvre5. Adapter l’intervention ostéopathique à l’évolution des troubles de la personne",60,null,20,null,null,10,70,80]
["5.6. Apprentissage des moyens de diagnostic, des traitements ostéopathiques et des techniques appropriées -Région lombo-pelvi-abdominale",null,90,100,40,null,null,30,200,230]
["5.7. Apprentissage des moyens de diagnostic,  des traitements ostéopathiques et des techniques appropriées -Région thoraco-scapulaire",null,null,100,80,null,null,20,160,180]
["5.8. Apprentissage des moyens de diagnostic,  des traitements ostéopathiques et des techniques appropriées -Région appendiculaire supérieure",null,30,50,null,null,null,10,70,80]
["5.9. Apprentissage des moyens de diagnostic, des traitements ostéopathiques et des techniques appropriées -Région cervico-céphalique",null,60,80,40,null,null,20,160,180]
["5.10. Relation et communication dans un contexte d'intervention ostéopathique","Compétence 4 Conduire une relation dans un contexte d’intervention ostéopathique",null,null,20,null,null,4,16,20]
["5.11.Diagnostic d'opportunité : conduites à tenir en consultation","Compétence 1 Evaluer une situation et élaborer un diagnostic ostéopathique\n7. Identifier les situations nécessitant l’intervention d’un médecin ou d’un autre professionnel médical et celles pouvant justifier l'intervention d'un autre professionnel 9. Discerner les éléments du ressort de l’ostéopathe  10. Elaborer un diagnostic ostéopathique",null,null,70,60,null,70,60,130]
["5.12. Gestes et soins d'urgence","Compétence 3 Réaliser une intervention ostéopathique\n8. Identifier les situations d’urgence et prendre les mesures appropriées",null,12,null,null,null,2,10,12]
["TOTAL",null,{"$f":"SUM(C51:C62)","v":380},428,348,110,0,244,1022,{"$f":"SUM(J51:J62)","v":1266}]
["6 - Méthodes et outils de travail"]
[]
["6.1. Méthodologie de recherche documentaire et d'analyse d'articles ","Compétence 5 Analyser sa pratique professionnelle et traiter des données scientifiques et professionnelles\n1. Identifier les ressources documentaires nécessaires et utiliser des bases de données actualisées 2. Questionner, traiter, analyser des données scientifiques et/ou professionnelles 3. Interpréter et utiliser les données contenues dans des publications nationales et internationales ",null,null,30,null,null,20,10,30]
["6.2.Méthodologies de recherche et d’évaluation en  ostéopathie","Compétence 5 Analyser sa pratique professionnelle et traiter des données scientifiques et professionnelles\n2. Questionner, traiter, analyser des données scientifiques et/ou professionnelles3. Interpréter et utiliser les données contenues dans des publications nationales et internationales \n",null,null,null,24,null,16,8,24]
["6.3. Méthodologie d'analyse de la pratique professionnelle","Compétence 5 Analyser sa pratique professionnelle et traiter des données scientifiques et professionnelles\n4. Observer, formaliser et expliciter les éléments de sa pratique professionnelle 5. Analyser sa pratique professionnelle au regard des références professionnelles et des évolutions  7. Identifier les améliorations possibles et les mesures de réajustement de sa pratique. 8. Confronter sa pratique professionnelle à celle de ses pairs, de l’équipe ou d’autres professionnels 9. Identifier les domaines de formation professionnelle et personnelle à développer ",null,null,null,null,24,16,8,24]
["6.4. Méthodologie de la communication écrite et orale - méthodes de travail","Compétence 5 Analyser sa pratique professionnelle et traiter des données scientifiques et professionnelles\n10. Rédiger et présenter des documents professionnels en vue de communication orale et/ou écrite",20,null,null,null,null,4,16,20]
["6.5. Anglais scientifique et professionnel","Compétence 5 Analyser sa pratique professionnelle et traiter des données scientifiques et professionnelles\n1. Identifier les ressources documentaires nécessaires et utiliser des bases de données actualisées 3. Interpréter et utiliser les données contenues dans des publications nationales et internationales 10. Rédiger et présenter des documents professionnels en vue de communication orale et/ou écrite",null,null,20,20,30,null,70,70]
["TOTAL",null,{"$f":"SUM(C66:C70)","v":20},0,50,44,54,56,112,168]
["7 - Développement des compétences de l'ostéopathe"]
[]
["7.1. Evaluer une situation et élaborer un diagnostic ostéopathique","Compétence 1 Evaluer une situation et élaborer un diagnostic ostéopathique",null,null,null,50,null,null,50,50]
["7.2. Concevoir et conduire un projet d'intervention ostéopathique","Compétence 2 Concevoir et conduire un projet d'intervention ostéopathique",null,null,null,30,null,null,30,30]
["7.3. Réaliser une intervention ostéopathique et conduire une relation dans un contexte d’intervention ostéopathique","Compétence 3 Réaliser une intervention ostéopathique\net compétence 4 conduire une relation dans un contexte d'intervention ostéopathique",null,null,50,null,null,null,50,50]
["7.4. Analyser et faire évoluer sa pratique professionnelle","Compétence 5 Analyser sa pratique professionnelle et traiter des données scientifiques et professionnelles",null,null,null,null,48,null,48,48]
["7.5. Préparer une installation professionnelle","Compétence 6 Gérer un cabinet ",null,null,null,null,16,null,16,16]
["TOTAL",null,{"$f":"SUM(C74:C78)","v":0},0,50,80,64,0,194,{"$f":"SUM(J74:J78)","v":194}]
["Formation pratique clinique","Stage d'observation et découverte du métier",50,70,null,null,null,null,null,120]
["Formation pratique clinique","Stage d'apprentissage progressif ",null,null,210,null,null,null,null,210]
["Formation pratique clinique","Stage d'apprentissage progressif ",null,null,null,450,null,null,null,450]
["Formation pratique clinique","Stage d'apprentissage progressif et consultations complètes ",null,null,null,null,720,null,null,720]
["TOTAL",null,50,70,210,450,720,{"$f":"SUM(H80:H83)","v":0},{"$f":"SUM(I80:I83)","v":0},{"$f":"SUM(J80:J83)","v":1500}]
["Mémoire"]
["Mémoire (guidance)","travail personnel : 100h",null,null,null,null,20,null,20,20]
["TOTAL",null,{"$f":"C86+C84+C79+C71+C63+C48+C42+C33+C15","v":952},996,970,976,966,1546,1814,4860]